{"text_format":"1","workbook":"xlsx","n_sheets":1,"sheets":["June 13 Non Calculator"],"not_rendered":{"charts":1,"images":0,"macros":1,"external_links":0,"defined_names":1,"comments":0,"pivot_tables":0},"unopened":[],"bounds":{"document_bytes":16777216,"sheet_cells":100000,"rows_first":2000,"rows_last":500,"rows_between":2000,"halvings":0,"cell_chars":16384,"cell_head_chars":4096},"cells_cut":0,"cells_raw":0,"read":"whole","date_system":"1900"}

{"sheet":"June 13 Non Calculator","index":0,"n_rows":146,"n_cols":34,"rows_kept":146,"cut":false,"hidden":false,"merged":[[6,29,7,29],[6,30,7,30],[0,0,0,28]]}
["June 13 Non Calculator"]
[null,1,2,3,4,5,6,7,8,9,10,11,12,13,14,15,16,17,18,19,20,21,22,23,24,25,26,27,28]
[null,"Place Value","Percentages ","Stem and Leaf ","Expanding and Factorising "," Product of Prime Factors, HCF, LCM","Averages and Range "," Mixed Transformations"," Estimation"," Product of Prime Factors, HCF, LCM"," Forming and Solving Equations"," Compound Measures"," Drawing Quadratic Graphs"," Loci and Construction","Inequalities "," Standard Form","percentage increase"," Volume of a Prism"," Simultaneous Equations"," Fractional & Negative Indices","Area and Algebra"," Cumulative Frequency","Volume Scale Factor"," Algebraic Fractions"," Histograms"," Transformations of Functions","And Or Probability"," Vectors","Trig Graphs"]
["Max Mark",2,4,3,5,3,3,5,3,3,4,4,3,3,4,3,3,6,4,2,4,6,4,2,3,4,4,4,2]
["Class Average (%)",{"$f":"AVERAGE(B9:B40)/B4","v":0.4107142857142857},0.30357142857142855,0.33333333333333331,0.2,0.39285714285714285,0.27380952380952378,0.22857142857142856,0.36904761904761907,0.35714285714285715,0.25,0.26785714285714285,0.44047619047619047,0.35714285714285715,0.20535714285714285,0.32142857142857145,0.32142857142857145,0.19047619047619047,0.25892857142857145,0.5357142857142857,0.25892857142857145,0.16666666666666666,0.38392857142857145,0.5892857142857143,0.29761904761904762,0.24107142857142858,0.25,{"$f":"AVERAGE(AB9:AB40)/AB4","v":0.26785714285714285},{"$f":"AVERAGE(AC9:AC40)/AC4","v":0.5714285714285714}]
["Standard Deviation",{"$f":"IF(COUNT(B9:B36)<2,\"\",STDEV(B9:B40)/B4)","v":0.38618675746355113},0.14202801720772446,0.24002743327436518,0.1539600717839002,0.24094415500663965,0.22321208111786084,0.13012000972647111,0.20963000355193159,0.25545201491160446,0.18002057495577389,0.19158901118370333,0.20394406213976754,0.2014059927055479,0.18070811625497976,0.21241590652006162,0.23097828906119441,0.13390529878141549,0.1732337167958958,0.35819949512370658,0.1732337167958958,0.10143010324169743,0.15931192989004619,0.33481812167679126,0.20963000355193154,0.19816452733569623,0.19245008972987526,{"$f":"IF(COUNT(AB9:AB36)<2,\"\",STDEV(AB9:AB40)/AB4)","v":0.1656716328980008},0.37796447300922725]
[null,null,null,null,null,null,null,null,null,null,null,null,null,null,null,null,null,null,null,null,null,null,null,null,null,null,null,null,null,"Total Marks","Grade"]
["Name"]
["Sample student 1",{"$f":"ROUND(RAND()*$B$4,0)","v":0},1,2,1,1,1,2,1,1,1,1,1,1,1,1,0,{"$f":"ROUND(RAND()*$B$4,0)","v":2},1,1,2,1,2,2,1,2,1,0,2,{"$f":"IF(AA9=\"\",\"\",SUM(B9:AC9))","v":33},{"$f":"IF(AD9=\"\",\"\",VLOOKUP(AD9,$AG$13:$AH$34,2))","v":"C2"}]
["Sample student 2",2,2,1,0,1,1,2,1,2,1,2,1,1,2,2,2,0,1,1,1,0,2,1,0,1,0,1,0,{"$f":"IF(AA10=\"\",\"\",SUM(B10:AC10))","v":31},{"$f":"IF(AD10=\"\",\"\",VLOOKUP(AD10,$AG$13:$AH$34,2))","v":"C2"},null,"Grade Boundaries"]
["Sample student 3",1,1,0,0,2,0,2,1,1,1,1,1,1,0,1,2,2,1,0,0,2,2,1,0,1,2,1,2,29,"C3"]
["Sample student 4",2,2,0,2,2,1,1,1,1,0,1,2,1,1,1,1,2,1,1,1,2,2,1,0,0,2,1,1,33,"C2",null,"Non- Calc"]
["Sample student 5",1,2,0,1,1,2,1,0,2,1,1,1,0,0,1,0,1,1,1,1,0,2,2,1,0,2,1,1,27,"C3",null,0,"F3"]
["Sample student 6",2,1,1,0,2,1,0,2,0,2,1,1,1,1,0,1,1,1,1,2,1,2,0,0,2,1,1,2,30,"C3",null,2,"F2"]
["Sample student 7",1,1,0,1,1,1,1,0,2,1,1,1,1,0,1,0,2,2,1,1,1,2,1,1,2,2,1,0,29,"C3",null,4,"F1"]
["Sample student 8",0,2,1,1,1,1,1,1,0,2,2,2,0,2,0,1,1,2,1,1,0,2,0,1,0,2,1,2,30,"C3",null,6,"E3"]
["Sample student 9",0,0,1,1,0,1,1,1,2,0,2,0,2,1,1,2,1,1,1,2,1,2,2,1,1,1,2,2,32,"C2",null,8,"E2"]
["Sample student 10",1,1,1,1,1,0,2,2,2,2,1,1,1,2,1,1,0,2,2,0,0,2,2,1,2,0,2,1,34,"C2",null,10,"E1"]
["Sample student 11",1,0,0,2,2,1,1,2,1,1,0,1,2,0,0,1,0,0,1,1,1,2,1,1,1,1,0,1,25,"C3",null,12,"D3"]
["Sample student 12",1,1,2,0,2,2,2,1,0,1,2,2,1,0,1,0,2,2,2,1,1,1,2,1,0,1,2,1,34,"C2",null,16,"D2"]
["Sample student 13",0,2,0,1,1,0,1,1,2,1,0,1,1,0,0,1,2,1,0,1,1,0,1,1,1,1,1,1,23,"D1",null,20,"D1"]
["Sample student 14",1,2,1,2,0,2,1,1,1,0,1,2,0,1,1,1,2,1,0,0,2,1,2,1,1,1,1,2,31,"C2",null,24,"C3"]
["Sample student 15",0,1,2,2,0,0,1,2,0,0,0,2,1,1,2,2,1,1,1,0,1,0,1,0,1,1,1,2,26,"C3",null,30.333333333333332,"C2"]
["Sample student 16",2,1,2,0,2,0,0,1,1,2,2,0,1,2,1,{"$f":"ROUND(RAND()*$B$4,0)","v":1},2,0,2,1,1,1,1,2,2,0,2,0,32,"C2",null,36.666666666666664,"C1"]
["Sample student 17",{"$f":"ROUND(RAND()*$B$4,0)","v":0},1,1,0,1,1,2,0,2,2,2,2,0,1,1,0,1,0,2,0,2,2,2,1,0,1,1,1,29,"C3",null,43,"B3"]
["Sample student 18",1,1,1,2,1,1,0,1,0,1,1,2,1,0,0,1,1,1,1,2,1,2,1,1,0,2,1,0,27,"C3",null,49.666666666666664,"B2"]
["Sample student 19",1,1,1,0,1,1,1,1,1,2,1,1,1,0,1,1,2,0,2,1,2,1,1,1,1,0,0,2,28,"C3",null,56.333333333333336,"B1"]
["Sample student 20",1,1,1,1,2,1,2,1,1,1,2,1,2,0,2,2,2,2,1,1,1,1,1,1,1,1,1,1,35,"C2",null,63,"A3"]
["Sample student 21",1,1,0,2,2,1,1,1,0,0,2,2,2,1,1,1,1,0,2,1,1,2,0,1,2,1,0,1,30,"C3",null,68.666666666666671,"A2"]
["Sample student 22",0,1,2,1,2,0,1,2,1,1,0,1,1,2,2,1,2,0,0,1,1,1,1,2,0,2,2,1,31,"C2",null,74.333333333333329,"A1"]
["Sample student 23",0,1,1,1,2,1,1,1,0,1,2,1,1,0,1,1,0,1,2,2,1,2,1,2,1,2,2,0,31,"C2",null,80," A*3"]
["Sample student 24",0,1,1,2,1,0,2,2,2,0,0,2,1,1,1,2,1,1,2,2,1,1,2,1,0,0,2,2,33,"C2",null,86.666666666666671,"A*2"]
["Sample student 25",0,2,2,1,1,0,1,0,1,2,0,1,2,1,2,0,1,2,1,0,1,1,2,0,1,0,1,0,26,"C3",null,93.333333333333329,"A*1"]
["Sample student 26",2,2,2,1,1,2,1,1,1,1,1,2,1,1,1,1,0,1,1,1,1,2,0,0,2,0,0,1,30,"C3",null,100,"A*1"]
["Sample student 27",0,1,1,2,0,0,1,2,1,0,1,2,1,1,0,1,0,2,0,2,0,2,1,2,0,1,1,2,27,"C3"]
["Sample student 28",{"$f":"ROUND(RAND()*$B$4,0)","v":2},{"$f":"ROUND(RAND()*$B$4,0)","v":1},1,0,0,1,0,1,2,1,0,1,2,1,1,0,0,1,0,1,1,1,1,1,2,0,1,1,24,"C3"]
[null,null,null,null,null,null,null,null,null,null,null,null,null,null,null,null,null,null,null,null,null,null,null,null,null,null,null,null,null,"",""]
[null,null,null,null,null,null,null,null,null,null,null,null,null,null,null,null,null,null,null,null,null,null,null,null,null,null,null,null,null,"",""]
[null,null,null,null,null,null,null,null,null,null,null,null,null,null,null,null,null,null,null,null,null,null,null,null,null,null,null,null,null,"",""]
[null,null,null,null,null,null,null,null,null,null,null,null,null,null,null,null,null,null,null,null,null,null,null,null,null,null,null,null,null,"",""]
[null,null,null,null,null,null,null,null,null,null,null,null,null,null,null,null,null,null,null,null,null,null,null,null,null,null,null,null,null,""]
[null,null,null,null,null,null,null,null,null,null,null,null,null,null,null,null,null,null,null,null,null,null,null,null,null,null,null,null,null,""]
[null,null,null,null,null,null,null,null,null,null,null,null,null,null,null,null,null,null,null,null,null,null,null,null,null,null,null,null,null,""]
[null,null,null,null,null,null,null,null,null,null,null,null,null,null,null,null,null,null,null,null,null,null,null,null,null,null,null,null,null,""]
[null,null,null,null,null,null,null,null,null,null,null,null,null,null,null,null,null,null,null,null,null,null,null,null,null,null,null,null,null,""]
[null,null,null,null,null,null,null,null,null,null,null,null,null,null,null,null,null,null,null,null,null,null,null,null,null,null,null,null,null,""]
[null,null,null,null,null,null,null,null,null,null,null,null,null,null,null,null,null,null,null,null,null,null,null,null,null,null,null,null,null,""]
[null,null,null,null,null,null,null,null,null,null,null,null,null,null,null,null,null,null,null,null,null,null,null,null,null,null,null,null,null,""]
[null,null,null,null,null,null,null,null,null,null,null,null,null,null,null,null,null,null,null,null,null,null,null,null,null,null,null,null,null,""]
[null,null,null,null,null,null,null,null,null,null,null,null,null,null,null,null,null,null,null,null,null,null,null,null,null,null,null,null,null,""]
[null,null,null,null,null,null,null,null,null,null,null,null,null,null,null,null,null,null,null,null,null,null,null,null,null,null,null,null,null,""]
[null,null,null,null,null,null,null,null,null,null,null,null,null,null,null,null,null,null,null,null,null,null,null,null,null,null,null,null,null,""]
[null,null,null,null,null,null,null,null,null,null,null,null,null,null,null,null,null,null,null,null,null,null,null,null,null,null,null,null,null,""]
[null,null,null,null,null,null,null,null,null,null,null,null,null,null,null,null,null,null,null,null,null,null,null,null,null,null,null,null,null,""]
[null,null,null,null,null,null,null,null,null,null,null,null,null,null,null,null,null,null,null,null,null,null,null,null,null,null,null,null,null,""]
[null,null,null,null,null,null,null,null,null,null,null,null,null,null,null,null,null,null,null,null,null,null,null,null,null,null,null,null,null,""]
[null,null,null,null,null,null,null,null,null,null,null,null,null,null,null,null,null,null,null,null,null,null,null,null,null,null,null,null,null,""]
[null,null,null,null,null,null,null,null,null,null,null,null,null,null,null,null,null,null,null,null,null,null,null,null,null,null,null,null,null,""]
[null,null,null,null,null,null,null,null,null,null,null,null,null,null,null,null,null,null,null,null,null,null,null,null,null,null,null,null,null,""]
[null,null,null,null,null,null,null,null,null,null,null,null,null,null,null,null,null,null,null,null,null,null,null,null,null,null,null,null,null,""]
[null,null,null,null,null,null,null,null,null,null,null,null,null,null,null,null,null,null,null,null,null,null,null,null,null,null,null,null,null,""]
[null,null,null,null,null,null,null,null,null,null,null,null,null,null,null,null,null,null,null,null,null,null,null,null,null,null,null,null,null,""]
[null,null,null,null,null,null,null,null,null,null,null,null,null,null,null,null,null,null,null,null,null,null,null,null,null,null,null,null,null,""]
[null,null,null,null,null,null,null,null,null,null,null,null,null,null,null,null,null,null,null,null,null,null,null,null,null,null,null,null,null,""]
[null,null,null,null,null,null,null,null,null,null,null,null,null,null,null,null,null,null,null,null,null,null,null,null,null,null,null,null,null,""]
[null,null,null,null,null,null,null,null,null,null,null,null,null,null,null,null,null,null,null,null,null,null,null,null,null,null,null,null,null,""]
[null,null,null,null,null,null,null,null,null,null,null,null,null,null,null,null,null,null,null,null,null,null,null,null,null,null,null,null,null,""]
[null,null,null,null,null,null,null,null,null,null,null,null,null,null,null,null,null,null,null,null,null,null,null,null,null,null,null,null,null,""]
[null,null,null,null,null,null,null,null,null,null,null,null,null,null,null,null,null,null,null,null,null,null,null,null,null,null,null,null,null,""]
[null,null,null,null,null,null,null,null,null,null,null,null,null,null,null,null,null,null,null,null,null,null,null,null,null,null,null,null,null,""]
[null,null,null,null,null,null,null,null,null,null,null,null,null,null,null,null,null,null,null,null,null,null,null,null,null,null,null,null,null,""]
[null,null,null,null,null,null,null,null,null,null,null,null,null,null,null,null,null,null,null,null,null,null,null,null,null,null,null,null,null,""]
[null,null,null,null,null,null,null,null,null,null,null,null,null,null,null,null,null,null,null,null,null,null,null,null,null,null,null,null,null,""]
[null,null,null,null,null,null,null,null,null,null,null,null,null,null,null,null,null,null,null,null,null,null,null,null,null,null,null,null,null,{"$f":"IF(AA74=\"\",\"\",SUM(B74:AC74))","v":""}]
[null,null,null,null,null,null,null,null,null,null,null,null,null,null,null,null,null,null,null,null,null,null,null,null,null,null,null,null,null,""]
[null,null,null,null,null,null,null,null,null,null,null,null,null,null,null,null,null,null,null,null,null,null,null,null,null,null,null,null,null,""]
[null,null,null,null,null,null,null,null,null,null,null,null,null,null,null,null,null,null,null,null,null,null,null,null,null,null,null,null,null,""]
[null,null,null,null,null,null,null,null,null,null,null,null,null,null,null,null,null,null,null,null,null,null,null,null,null,null,null,null,null,""]
[null,null,null,null,null,null,null,null,null,null,null,null,null,null,null,null,null,null,null,null,null,null,null,null,null,null,null,null,null,""]
[null,null,null,null,null,null,null,null,null,null,null,null,null,null,null,null,null,null,null,null,null,null,null,null,null,null,null,null,null,""]
[null,null,null,null,null,null,null,null,null,null,null,null,null,null,null,null,null,null,null,null,null,null,null,null,null,null,null,null,null,""]
[null,null,null,null,null,null,null,null,null,null,null,null,null,null,null,null,null,null,null,null,null,null,null,null,null,null,null,null,null,""]
[null,null,null,null,null,null,null,null,null,null,null,null,null,null,null,null,null,null,null,null,null,null,null,null,null,null,null,null,null,""]
[null,null,null,null,null,null,null,null,null,null,null,null,null,null,null,null,null,null,null,null,null,null,null,null,null,null,null,null,null,""]
[null,null,null,null,null,null,null,null,null,null,null,null,null,null,null,null,null,null,null,null,null,null,null,null,null,null,null,null,null,""]
[null,null,null,null,null,null,null,null,null,null,null,null,null,null,null,null,null,null,null,null,null,null,null,null,null,null,null,null,null,""]
[null,null,null,null,null,null,null,null,null,null,null,null,null,null,null,null,null,null,null,null,null,null,null,null,null,null,null,null,null,""]
[null,null,null,null,null,null,null,null,null,null,null,null,null,null,null,null,null,null,null,null,null,null,null,null,null,null,null,null,null,""]
[null,null,null,null,null,null,null,null,null,null,null,null,null,null,null,null,null,null,null,null,null,null,null,null,null,null,null,null,null,""]
[null,null,null,null,null,null,null,null,null,null,null,null,null,null,null,null,null,null,null,null,null,null,null,null,null,null,null,null,null,""]
[null,null,null,null,null,null,null,null,null,null,null,null,null,null,null,null,null,null,null,null,null,null,null,null,null,null,null,null,null,""]
[null,null,null,null,null,null,null,null,null,null,null,null,null,null,null,null,null,null,null,null,null,null,null,null,null,null,null,null,null,""]
[null,null,null,null,null,null,null,null,null,null,null,null,null,null,null,null,null,null,null,null,null,null,null,null,null,null,null,null,null,""]
[null,null,null,null,null,null,null,null,null,null,null,null,null,null,null,null,null,null,null,null,null,null,null,null,null,null,null,null,null,""]
[null,null,null,null,null,null,null,null,null,null,null,null,null,null,null,null,null,null,null,null,null,null,null,null,null,null,null,null,null,""]
[null,null,null,null,null,null,null,null,null,null,null,null,null,null,null,null,null,null,null,null,null,null,null,null,null,null,null,null,null,""]
[null,null,null,null,null,null,null,null,null,null,null,null,null,null,null,null,null,null,null,null,null,null,null,null,null,null,null,null,null,""]
[null,null,null,null,null,null,null,null,null,null,null,null,null,null,null,null,null,null,null,null,null,null,null,null,null,null,null,null,null,""]
[null,null,null,null,null,null,null,null,null,null,null,null,null,null,null,null,null,null,null,null,null,null,null,null,null,null,null,null,null,""]
[null,null,null,null,null,null,null,null,null,null,null,null,null,null,null,null,null,null,null,null,null,null,null,null,null,null,null,null,null,""]
[null,null,null,null,null,null,null,null,null,null,null,null,null,null,null,null,null,null,null,null,null,null,null,null,null,null,null,null,null,""]
[null,null,null,null,null,null,null,null,null,null,null,null,null,null,null,null,null,null,null,null,null,null,null,null,null,null,null,null,null,""]
[null,null,null,null,null,null,null,null,null,null,null,null,null,null,null,null,null,null,null,null,null,null,null,null,null,null,null,null,null,""]
[null,null,null,null,null,null,null,null,null,null,null,null,null,null,null,null,null,null,null,null,null,null,null,null,null,null,null,null,null,""]
[null,null,null,null,null,null,null,null,null,null,null,null,null,null,null,null,null,null,null,null,null,null,null,null,null,null,null,null,null,""]
[null,null,null,null,null,null,null,null,null,null,null,null,null,null,null,null,null,null,null,null,null,null,null,null,null,null,null,null,null,""]
[null,null,null,null,null,null,null,null,null,null,null,null,null,null,null,null,null,null,null,null,null,null,null,null,null,null,null,null,null,""]
[null,null,null,null,null,null,null,null,null,null,null,null,null,null,null,null,null,null,null,null,null,null,null,null,null,null,null,null,null,""]
[null,null,null,null,null,null,null,null,null,null,null,null,null,null,null,null,null,null,null,null,null,null,null,null,null,null,null,null,null,""]
[null,null,null,null,null,null,null,null,null,null,null,null,null,null,null,null,null,null,null,null,null,null,null,null,null,null,null,null,null,""]
[null,null,null,null,null,null,null,null,null,null,null,null,null,null,null,null,null,null,null,null,null,null,null,null,null,null,null,null,null,""]
[null,null,null,null,null,null,null,null,null,null,null,null,null,null,null,null,null,null,null,null,null,null,null,null,null,null,null,null,null,""]
[null,null,null,null,null,null,null,null,null,null,null,null,null,null,null,null,null,null,null,null,null,null,null,null,null,null,null,null,null,""]
[null,null,null,null,null,null,null,null,null,null,null,null,null,null,null,null,null,null,null,null,null,null,null,null,null,null,null,null,null,""]
[null,null,null,null,null,null,null,null,null,null,null,null,null,null,null,null,null,null,null,null,null,null,null,null,null,null,null,null,null,""]
[null,null,null,null,null,null,null,null,null,null,null,null,null,null,null,null,null,null,null,null,null,null,null,null,null,null,null,null,null,""]
[null,null,null,null,null,null,null,null,null,null,null,null,null,null,null,null,null,null,null,null,null,null,null,null,null,null,null,null,null,""]
[null,null,null,null,null,null,null,null,null,null,null,null,null,null,null,null,null,null,null,null,null,null,null,null,null,null,null,null,null,""]
[null,null,null,null,null,null,null,null,null,null,null,null,null,null,null,null,null,null,null,null,null,null,null,null,null,null,null,null,null,""]
[null,null,null,null,null,null,null,null,null,null,null,null,null,null,null,null,null,null,null,null,null,null,null,null,null,null,null,null,null,""]
[null,null,null,null,null,null,null,null,null,null,null,null,null,null,null,null,null,null,null,null,null,null,null,null,null,null,null,null,null,""]
[null,null,null,null,null,null,null,null,null,null,null,null,null,null,null,null,null,null,null,null,null,null,null,null,null,null,null,null,null,""]
[null,null,null,null,null,null,null,null,null,null,null,null,null,null,null,null,null,null,null,null,null,null,null,null,null,null,null,null,null,""]
[null,null,null,null,null,null,null,null,null,null,null,null,null,null,null,null,null,null,null,null,null,null,null,null,null,null,null,null,null,""]
[null,null,null,null,null,null,null,null,null,null,null,null,null,null,null,null,null,null,null,null,null,null,null,null,null,null,null,null,null,""]
[null,null,null,null,null,null,null,null,null,null,null,null,null,null,null,null,null,null,null,null,null,null,null,null,null,null,null,null,null,""]
[null,null,null,null,null,null,null,null,null,null,null,null,null,null,null,null,null,null,null,null,null,null,null,null,null,null,null,null,null,""]
[null,null,null,null,null,null,null,null,null,null,null,null,null,null,null,null,null,null,null,null,null,null,null,null,null,null,null,null,null,""]
[null,null,null,null,null,null,null,null,null,null,null,null,null,null,null,null,null,null,null,null,null,null,null,null,null,null,null,null,null,""]
[null,null,null,null,null,null,null,null,null,null,null,null,null,null,null,null,null,null,null,null,null,null,null,null,null,null,null,null,null,""]
[null,null,null,null,null,null,null,null,null,null,null,null,null,null,null,null,null,null,null,null,null,null,null,null,null,null,null,null,null,""]
[null,null,null,null,null,null,null,null,null,null,null,null,null,null,null,null,null,null,null,null,null,null,null,null,null,null,null,null,null,""]
[null,null,null,null,null,null,null,null,null,null,null,null,null,null,null,null,null,null,null,null,null,null,null,null,null,null,null,null,null,""]
[null,null,null,null,null,null,null,null,null,null,null,null,null,null,null,null,null,null,null,null,null,null,null,null,null,null,null,null,null,""]
[null,null,null,null,null,null,null,null,null,null,null,null,null,null,null,null,null,null,null,null,null,null,null,null,null,null,null,null,null,""]
[null,null,null,null,null,null,null,null,null,null,null,null,null,null,null,null,null,null,null,null,null,null,null,null,null,null,null,null,null,""]
[null,null,null,null,null,null,null,null,null,null,null,null,null,null,null,null,null,null,null,null,null,null,null,null,null,null,null,null,null,""]
[null,null,null,null,null,null,null,null,null,null,null,null,null,null,null,null,null,null,null,null,null,null,null,null,null,null,null,null,null,{"$f":"IF(AA138=\"\",\"\",SUM(B138:AC138))","v":""}]
[null,null,null,null,null,null,null,null,null,null,null,null,null,null,null,null,null,null,null,null,null,null,null,null,null,null,null,null,null,""]
[null,null,null,null,null,null,null,null,null,null,null,null,null,null,null,null,null,null,null,null,null,null,null,null,null,null,null,null,null,""]
[null,null,null,null,null,null,null,null,null,null,null,null,null,null,null,null,null,null,null,null,null,null,null,null,null,null,null,null,null,""]
[null,null,null,null,null,null,null,null,null,null,null,null,null,null,null,null,null,null,null,null,null,null,null,null,null,null,null,null,null,""]
[null,null,null,null,null,null,null,null,null,null,null,null,null,null,null,null,null,null,null,null,null,null,null,null,null,null,null,null,null,""]
[null,null,null,null,null,null,null,null,null,null,null,null,null,null,null,null,null,null,null,null,null,null,null,null,null,null,null,null,null,""]
[null,null,null,null,null,null,null,null,null,null,null,null,null,null,null,null,null,null,null,null,null,null,null,null,null,null,null,null,null,""]
[null,null,null,null,null,null,null,null,null,null,null,null,null,null,null,null,null,null,null,null,null,null,null,null,null,null,null,null,null,""]